Cogmind - Beta 15 @@@ ROGUE MODE // 2025.09.27 @ 19:37:33 Player: beans Result: Destroyed by L-41 Fighter with Axe Performance ------------- Evolutions (5) 2500 Regions Visited (17) 3400 Robots Destroyed (109) 545 Value Destroyed (3755) 3755 Prototype IDs (36) 720 Alien Tech Used (0) 0 Bonus (3362) 3362 TOTAL SCORE: 14282 Bonus ------- High Alert Combat Kills 1033 Follower Combat Kills 1862 Entered Garrisons 200 Entered DSFs 500 Aligned with FarCom 300 Friendly Fire -533 Cogmind --------- Core Integrity 0/1000 Matter 255/300 Energy 81/100 System Corruption 26% Temperature Cool (0) Movement Flying (170) Ox2 Location -5/Factory Parts ------- > --- POWER (2) -------- (None) > --- PROPULSION (4) --- Biomechanical Wings > --- UTILITY (7) ------ Modified TNC Experimental Weapon Shielding > --- WEAPON (4) ------- Improved KE Penetrator Improved KE Penetrator > --- INVENTORY (5) ---- Experimental Weapon Shielding Supersonic Drone Bay (0/1) Heavy Beamcaster Peak State ------------ > --- POWER ------------ Backup Power III Light Fission Core > --- PROPULSION ------- Biomechanical Wings Biomechanical Wings > --- UTILITY ---------- Advanced Heat Sink Modified TNC Advanced Particle Charger Improved Core Shielding Advanced EM Shield System Shield > --- WEAPON ----------- Improved Arc Projector Cooled Pulse Rifle Cooled Pulse Rifle Disruptor Cannon > --- INVENTORY -------- Backup Power III Cooled Cesium-ion Thruster Field Propulsion Array Supersonic Drone Bay [Rating: 79] Favorites ----------- Power Backup Power III Engine Backup Power III Power Core Light Fission Core Reactor Cold Fusion Reactor Propulsion Biomechanical Wings Treads Light Treads Leg Light Armored Exoskeleton Wheel Centrium Wheel Hover Unit Backup Propulsion III Flight Unit Biomechanical Wings Utility Modified TNC Device Trap Reconfigurator Processor Modified TNC Hackware System Shield Protection Backup Plating III Weapon Shotgun Energy Gun Cooled Pulse Rifle Energy Cannon Disruptor Cannon Ballistic Gun Shotgun Ballistic Cannon Battle Cannon Launcher Heavy Rocket Launcher Slashing Weapon Molecular Scythe Build | -11 -10 -10 -10 -9 -8 -7 -7 -7 -6 -6 -6 -6 -5 -5 -5 -5 -5 ------- Run | Yrd Mat Min Exi Min Mat Fac Was Fac Fac Was Fac DSF Fac Was Fac Gar Fac Slots Evolved 10 | . . . . . 4 2 . . 2 . . . 2 . . . . Power 1 | . . . . . . 1 . . . . . . . . . . . Propulsion 2 | . . . . . . . . . . . . . 2 . . . . Utility 5 | . . . . . 2 1 . . 2 . . . . . . . . Weapon 2 | . . . . . 2 . . . . . . . . . . . . Parts Attached 70 | 1 2 2 1 . 7 1 11 7 10 9 . 6 4 2 . 2 5 Power 6 | 1 . . . . . 1 . . 1 2 . . 1 . . . . Engine 3 | 1 . . . . . . . . 1 1 . . . . . . . Core 2 | . . . . . . 1 . . . 1 . . . . . . . Reactor 1 | . . . . . . . . . . . . . 1 . . . . Propulsion 17 | . . . . . 4 . 1 1 6 1 . . . . . 2 2 Treads 2 | . . . . . 2 . . . . . . . . . . . . Leg 6 | . . . . . 2 . . 1 1 . . . . . . . 2 Wheel 1 | . . . . . . . 1 . . . . . . . . . . Hover 2 | . . . . . . . . . 2 . . . . . . . . Flight 6 | . . . . . . . . . 3 1 . . . . . 2 . Utility 15 | . . . 1 . 1 . 1 3 1 4 . 1 2 1 . . . Device 8 | . . . 1 . 1 . . 1 1 3 . . . 1 . . . Storage . | . . . . . . . . . . . . . . . . . . Processor 2 | . . . . . . . . 1 . . . 1 . . . . . Hackware 1 | . . . . . . . . 1 . . . . . . . . . Protection 4 | . . . . . . . 1 . . 1 . . 2 . . . . Artifact . | . . . . . . . . . . . . . . . . . . Weapon 32 | . 2 2 . . 2 . 9 3 2 2 . 5 1 1 . . 3 Energy Gun 6 | . . . . . . . 2 2 . 1 . . . . . . 1 Energy Cannon 2 | . . . . . . . 1 . . 1 . . . . . . . Ballistic Gun 16 | . 2 2 . . 1 . 3 . 1 . . 5 . . . . 2 Ballistic Cannon 5 | . . . . . 1 . 2 . 1 . . . 1 . . . . Launcher 2 | . . . . . . . 1 1 . . . . . . . . . Special Weapon . | . . . . . . . . . . . . . . . . . . Impact Weapon . | . . . . . . . . . . . . . . . . . . Slashing Weapon 1 | . . . . . . . . . . . . . . 1 . . . Piercing Weapon . | . . . . . . . . . . . . . . . . . . Special Melee Weapon . | . . . . . . . . . . . . . . . . . . Unidentified Prototypes 13 | . . . . . . . 1 1 5 1 . . 2 2 . . 1 Corrupted Parts 2 | . . . . . . . . . . . . . . 1 . . 1 System Corruption 12 | . . . . . . . . . . . . . . 8 . . 4 Parts Lost 35 | . . 1 . . 3 1 5 5 2 . . 4 1 2 . 10 1 Power 7 | . . . . . . 1 1 2 1 . . . . . . 2 . Propulsion 8 | . . . . . 2 . 1 . . . . . . 1 . 3 1 Utility 5 | . . . . . . . . 1 . . . 1 1 . . 2 . Weapon 15 | . . 1 . . 1 . 3 2 1 . . 3 . 1 . 3 . Highest Loss Streak 8 | . . 1 . . 2 1 5 3 1 . . 4 1 2 . 8 1 To Critical Strikes . | . . . . . . . . . . . . . . . . . . Average Backups 3 | . 2 3 3 5 4 3 4 4 2 4 4 3 3 3 4 3 3 Power . | . . . . . . . . . . . . . . . . . . Propulsion . | . . . . . . . . . . 1 2 2 1 . . . . Utility 1 | . . 1 1 3 2 2 2 1 1 1 1 . . 2 3 3 2 Weapon 1 | . 1 2 2 2 1 1 1 2 . . 1 1 1 . 1 . . Tool/Special . | . . . . . . . . . . . . . . . . . . Unused Backups 5 | . . . . . . . 3 . 1 . . . . . . . 1 Power 1 | . . . . . . . 1 . . . . . . . . . . Propulsion 1 | . . . . . . . . . 1 . . . . . . . . Utility 1 | . . . . . . . 1 . . . . . . . . . . Weapon 2 | . . . . . . . 1 . . . . . . . . . 1 Tool/Special . | . . . . . . . . . . . . . . . . . . Average Slot Usage (%) 57 | . 40 42 49 57 60 68 50 83 36 69 80 70 65 57 58 41 22 Engine 9 | . 14 14 14 14 9 4 10 11 2 9 13 13 8 5 5 2 . Leg 1 | . . . . . . 15 1 2 1 . . . . . . . . Wheel 1 | . . . . . . . 4 4 . . . . . . . . . Hover 1 | . . . . . . . 4 4 1 . . . . . . . . Flight 4 | . . . . . . . . . 4 7 13 13 17 16 17 15 10 Device 7 | . . . 6 14 10 15 2 8 . 16 20 10 8 5 5 3 . Processor 3 | . . . . . . . . 3 6 6 6 12 11 11 11 8 5 Hackware 2 | . . . . . . . . 5 6 6 6 6 4 . . . . Protection 2 | . . . . . . . 9 10 . . 6 . 1 . . . . Energy Gun 3 | . . . . . . . 3 4 9 14 13 2 . . . . 3 Ballistic Gun 12 | . 26 28 28 28 27 23 4 7 . . . 10 8 5 5 2 1 Ballistic Cannon 3 | . . . . . . 7 2 14 . . . . . 4 5 2 . Peak Build Rating 79 | 1 5 5 15 15 31 34 60 62 42 79 65 62 79 77 59 59 34 Average Rating 35 | . 4 4 9 15 20 31 29 55 28 62 65 56 71 59 59 42 22 On Entrance 33 | . 1 5 5 15 15 31 34 58 11 28 65 65 60 68 59 59 16 Naked Turns 131 | . . . . . . . 131 . . . . . . . . . . Heaviest Build 50 | 5 11 11 12 12 22 22 50 47 13 40 21 20 27 30 30 30 12 Greatest Support 40 | 3 3 3 3 3 40 27 27 30 30 15 12 15 27 27 18 20 10 Greatest Overweight (x) 7 | 1 3 3 3 3 7 . 3 2 2 6 1 1 . 1 1 1 1 Average Overweight (x) . | . 2 2 3 3 1 . . 1 . 1 1 . . . 1 . . Largest Inventory Capacity 5 | 5 5 5 5 5 5 5 5 5 5 5 5 5 5 5 5 5 5 Average Capacity 5 | 5 5 5 5 5 5 5 5 5 5 5 5 5 5 5 5 5 5 Most Carried 5 | 1 4 4 5 5 5 5 5 5 5 5 5 5 5 5 4 5 5 Average Carried 4 | . 2 3 3 5 4 3 4 4 2 4 5 4 3 3 4 3 3 Final Capacity 5 | 5 5 5 5 5 5 5 5 5 5 5 5 5 5 5 5 5 5 Final Carried 5 | . 4 3 5 5 3 5 5 5 5 5 5 4 5 4 4 4 3 Class Distribution -------------------- 61% | Mutant 9% | Tank 9% | Gunner 7% | Skirmisher 6% | Derelict-Tank 3% | Derelict-Gunner Dominant Class ---------------- Mutant | -10/Materials Mutant | -10/Mines Mutant | -10/Exiles Mutant | -9/Mines Skirmisher | -8/Materials Gunner | -7/Factory Mutant | -7/Waste Tank | -7/Factory Mutant | -6/Factory Mutant | -6/Waste Mutant | -6/Factory Mutant | -6/DSF Mutant | -5/Factory Mutant | -5/Waste Mutant | -5/Factory Mutant | -5/Garrison Mutant | -5/Factory Resources | -11 -10 -10 -10 -9 -8 -7 -7 -7 -6 -6 -6 -6 -5 -5 -5 -5 -5 ----------- Run | Yrd Mat Min Exi Min Mat Fac Was Fac Fac Was Fac DSF Fac Was Fac Gar Fac Matter Collected 4116 | 197 161 116 . 9 650 80 320 848 396 179 . 195 321 325 . 222 97 Remotely . | . . . . . . . . . . . . . . . . . . Salvage Created 4804 | . 228 298 . 9 877 80 . 1169 410 85 . 211 697 577 . 66 97 Parts 223 | . 11 13 . 1 37 10 . 81 13 4 . 9 28 12 . 2 2 Haulers Intercepted 9 | . . . . . . . . 4 2 . . . 2 . . . 1 Recyclers Shooed 7 | . 1 2 . . 1 1 . 1 1 . . . . . . . . Parts Field Recycled . | . . . . . . . . . . . . . . . . . . Retrieved Matter . | . . . . . . . . . . . . . . . . . . Parts Self-Destructed . | . . . . . . . . . . . . . . . . . . Prevented . | . . . . . . . . . . . . . . . . . . Kills | -11 -10 -10 -10 -9 -8 -7 -7 -7 -6 -6 -6 -6 -5 -5 -5 -5 -5 ------- Run | Yrd Mat Min Exi Min Mat Fac Was Fac Fac Was Fac DSF Fac Was Fac Gar Fac Combat Hostiles Destroyed 74 | . 4 5 . . 21 3 . 27 1 . . 2 8 2 . 1 . Melee 1 | . . . . . . . . . . . . . . . . 1 . Guns 47 | . 4 5 . . 21 2 . 5 . . . 2 6 2 . . . Cannons 10 | . . . . . . 1 . 8 1 . . . . . . . . AOE 16 | . . . . . . . . 14 . . . . 2 . . . . Classes Destroyed 20 | . 3 . . 1 4 . . 7 1 . . 2 1 1 . . . Worker 13 | . . . . 1 . 1 . 8 1 . . . 2 . . . . Builder 7 | . . . . . . . . 7 . . . . . . . . . Tunneler 3 | . 1 . . . 1 . . 1 . . . . . . . . . Hauler 9 | . . . . . . . . 4 2 . . . 2 . . . 1 Recycler 3 | . 1 1 . . . . . . 1 . . . . . . . . Mechanic 1 | . . . . . . . . 1 . . . . . . . . . Watcher 1 | . . . . . . . . . 1 . . . . . . . . Swarmer 6 | . . . . . 3 3 . . . . . . . . . . . Cutter 1 | . . . . . . . . . . . . . 1 . . . . Grunt 44 | . 4 5 . . 14 . . 13 . . . . 7 . . 1 . Brawler 2 | . . . . . 1 . . 1 . . . . . . . . . Duelist 3 | . . . . . 1 . . 2 . . . . . . . . . Protector 2 | . . . . . . . . 2 . . . . . . . . . Sentry 3 | . . . . . 2 . . 1 . . . . . . . . . Demolisher 1 | . . . . . . . . 1 . . . . . . . . . Specialist 1 | . . . . . . . . . . . . 1 . . . . . Hunter 1 | . . . . . . . . . . . . 1 . . . . . Programmer 4 | . . . . . . . . 3 1 . . . . . . . . Compactor 2 | . . . . . . . . . . . . . . 2 . . . Assembled 3 | . . . . . . . . 3 . . . . . . . . . Surgeon 1 | . . . . . . . . 1 . . . . . . . . . Thug 1 | . . . . . . . . 1 . . . . . . . . . Best Kill Streak 11 | . 2 4 . 1 5 3 . 11 2 . . 2 5 2 . 1 1 Combat Bots Only 7 | . 2 3 . . 5 3 . 7 1 . . 2 4 2 . 1 . Max Kills in Single Turn 4 | . 1 1 . 1 2 1 . 4 1 . . 1 2 1 . 1 1 Gunslinging 1 | . . . . . 1 . . . . . . . 1 . . . . Exploded 2 | . . . . . . . . 2 . . . . 1 . . . . Melee 1 | . . . . . . . . . . . . . . . . 1 . Uniques/NPCs Destroyed . | . . . . . . . . . . . . . . . . . . Combat | -11 -10 -10 -10 -9 -8 -7 -7 -7 -6 -6 -6 -6 -5 -5 -5 -5 -5 -------- Run | Yrd Mat Min Exi Min Mat Fac Was Fac Fac Was Fac DSF Fac Was Fac Gar Fac Hostile Shots Fired 462 | . 16 27 . . 61 18 6 117 16 . . 32 26 1 . 115 27 Missed 156 | . 6 2 . . 22 7 . 33 6 . . 10 10 . . 46 14 Hits 306 | . 10 25 . . 39 11 6 84 10 . . 22 16 1 . 69 13 Melee 9 | . . . . . . . 6 1 . . . . . 1 . . 1 Projectile 297 | . 10 25 . . 39 11 . 83 10 . . 22 16 . . 69 12 AOE 8 | . . . . . . . . 2 . . . 3 1 . . . 2 Critical Strikes 11 | . . 2 . . . 1 4 2 . . . . . . . 2 . Damage Taken 6018 | . 112 314 . . 568 159 439 1608 195 . . 619 311 53 . 1294 346 Core 1967 | . 32 82 . . 76 . 283 276 64 . . 150 61 . . 700 243 Absorbed by Shields 31 | . . . . . . . . . . . . . . . . . 31 Redirected to Shielding 102 | . . . . . . . . . . . . . 64 . . . 38 Regen/Repaired (Parts) 601 | . . . . . 107 . 78 174 . 182 . 36 . 24 . . . Core Remaining (%) 66 | 100 . . . 54 86 . . 20 . . . 74 . . . . . Volleys Fired 313 | . 17 12 . 1 42 7 15 73 30 20 . 10 38 31 . 6 11 Largest 4 | . 2 2 . 2 4 4 4 4 2 3 . 3 2 2 . 2 2 Hottest 255 | . 46 46 . 46 92 106 255 132 60 146 . 93 80 80 . 80 81 Shots Fired 675 | . 34 24 . 2 137 25 36 181 42 37 . 23 57 55 . 10 12 Gun 490 | . 34 24 . 2 137 18 21 70 29 24 . 23 52 40 . 4 12 Cannon 163 | . . . . . . 7 10 94 13 13 . . 5 15 . 6 . Launcher 22 | . . . . . . . 5 17 . . . . . . . . . Special . | . . . . . . . . . . . . . . . . . . Kinetic 545 | . 34 24 . 2 137 25 20 141 13 5 . 19 57 55 . 10 3 Thermal 94 | . . . . . . . 11 23 29 18 . 4 . . . . 9 Explosive 22 | . . . . . . . 5 17 . . . . . . . . . Electromagnetic 14 | . . . . . . . . . . 14 . . . . . . . Robot Hit Streak 22 | . 7 6 . 1 12 2 5 7 12 22 . 2 5 12 . 3 5 Robot Miss Streak 28 | . 4 3 . 4 8 28 8 8 2 4 . 3 5 3 . 2 5 Penetration Max 2 | . . . . . . . . . . . . 1 2 1 . . . Secondary Targets 6 | . . 1 . . 3 . . . . . . . 1 1 . . . Max Gunslinging Chain 1 | . . 1 . . 1 . . . . . . . 1 1 . . . Shots Hit Robots 372 | . 26 18 . 1 96 9 11 76 26 19 . 8 29 39 . 8 6 Core Hits 260 | . 14 15 . 1 61 9 5 96 12 2 . 4 30 7 . 1 3 Critical Kills 12 | . . . . . 1 . . 1 . . . 1 7 2 . . . Critical Parts Destroyed 11 | . . . . . 1 . . . . . . 1 7 2 . . . Critical Strikes 45 | . . . . . 2 . . 7 . 2 . 2 14 18 . . . Burn 2 | . . . . . . . . 1 . 1 . . . . . . . Destroy 36 | . . . . . 2 . . 1 . . . 2 14 17 . . . Blast 7 | . . . . . . . . 5 . 1 . . . 1 . . . Melee Attacks 2 | . . . . . . . . . . . . . . . . 2 . Impact . | . . . . . . . . . . . . . . . . . . Slashing 2 | . . . . . . . . . . . . . . . . 2 . Piercing . | . . . . . . . . . . . . . . . . . . Sneak Attacks . | . . . . . . . . . . . . . . . . . . Combat Hostiles . | . . . . . . . . . . . . . . . . . . Follow-up Attacks . | . . . . . . . . . . . . . . . . . . Damage Inflicted 10976 | . 372 275 . 10 1435 120 606 5287 529 422 . 202 660 596 . 298 164 Guns 4786 | . 372 275 . 10 1435 74 157 977 419 201 . 202 248 231 . 21 164 Cannons 2096 | . . . . . . 46 78 1030 110 221 . . 107 365 . 139 . Explosions 3956 | . . . . . . . 371 3280 . . . . 305 . . . . Melee 138 | . . . . . . . . . . . . . . . . 138 . Ramming . | . . . . . . . . . . . . . . . . . . Kinetic 5724 | . 372 275 . 10 1435 120 235 1677 110 146 . 182 355 596 . 160 51 Thermal 1040 | . . . . . . . . 330 419 158 . 20 . . . . 113 Explosive 3846 | . . . . . . . 371 3280 . . . . 195 . . . . Electromagnetic 228 | . . . . . . . . . . 118 . . 110 . . . . Impact . | . . . . . . . . . . . . . . . . . . Slashing 138 | . . . . . . . . . . . . . . . . 138 . Piercing . | . . . . . . . . . . . . . . . . . . Highest Corruption 26 | . . . . . . . . 2 6 6 6 6 . 22 22 22 26 Average Corruption 10 | . . . . . . . . 2 3 6 6 6 . 9 22 22 25 Corruption Purged . | . . . . . . . . . . . . . . . . . . Corruption Blocked . | . . . . . . . . . . . . . . . . . . Effects 73 | . . . . . . . . 5 1 20 . 6 . 13 . 17 11 Message Errors 7 | . . . . . . . . 1 . 1 . . . . . 4 1 Matter Fused 27 | . . . . . . . . 1 1 5 . 3 . 7 . 5 5 Heat Flow Errors 4 | . . . . . . . . . . 1 . . . . . 2 1 Energy Discharges 15 | . . . . . . . . 1 . 7 . 2 . 3 . 2 . Parts Rejected 1 | . . . . . . . . . . . . . . . . . 1 Parts Fused 1 | . . . . . . . . 1 . . . . . . . . . Data Loss (minor) 6 | . . . . . . . . . . 3 . . . . . . 3 Data Loss (major) 4 | . . . . . . . . 1 . . . . . 2 . 1 . Misfires 1 | . . . . . . . . . . 1 . . . . . . . Alerts 1 | . . . . . . . . . . 1 . . . . . . . Misdirections 2 | . . . . . . . . . . . . . . . . 2 . Weapon Failures 4 | . . . . . . . . . . 1 . 1 . 1 . 1 . Overload Shots 14 | . . . . . . . 1 11 2 . . . . . . . . Effects 1 | . . . . . . . . 1 . . . . . . . . . Energy Bleed 1 | . . . . . . . . 1 . . . . . . . . . Overflow Damage 51 | . . . . . . . . 13 . . . . 11 . . 27 . Projectiles . | . . . . . . . . . . . . . . . . . . Explosions 24 | . . . . . . . . 13 . . . . 11 . . . . Melee 27 | . . . . . . . . . . . . . . . . 27 . Knockbacks 8 | . . . . . . . . 6 . . . . . . . 2 . Impact . | . . . . . . . . . . . . . . . . . . Kinetic 7 | . . . . . . . . 6 . . . . . . . 1 . Secondary 1 | . . . . . . . . . . . . . . . . 1 . Self-Inflicted Damage 145 | . . . . . . . 24 121 . . . . . . . . . Shots 6 | . . . . . . . 1 5 . . . . . . . . . Rammed . | . . . . . . . . . . . . . . . . . . Targets Rammed . | . . . . . . . . . . . . . . . . . . Kicked . | . . . . . . . . . . . . . . . . . . Crushed . | . . . . . . . . . . . . . . . . . . Highest Temperature 410 | . 4 31 . . 92 24 344 410 . 244 . . 2 . . 187 180 Average Temperature 80 | . 1 17 . . 22 7 104 106 . 64 . . 2 . . 88 30 Received Heat Transfer 1386 | . 51 210 . . 279 . . 435 27 . . . 63 . . 261 60 Effects 7 | . . . . . . . 1 6 . . . . . . . . . Shutdowns 3 | . . . . . . . 1 2 . . . . . . . . . Energy Bleed 3 | . . . . . . . . 3 . . . . . . . . . Damage (minor) 1 | . . . . . . . . 1 . . . . . . . . . Siege Activations . | . . . . . . . . . . . . . . . . . . Martial Activations . | . . . . . . . . . . . . . . . . . . Shielding Activations . | . . . . . . . . . . . . . . . . . . Robots Disrupted . | . . . . . . . . . . . . . . . . . . Combat Hostiles . | . . . . . . . . . . . . . . . . . . Robots Corrupted . | . . . . . . . . . . . . . . . . . . Combat Hostiles . | . . . . . . . . . . . . . . . . . . Parts Fried 1 | . . . . . . . . . . 1 . . . . . . . Impact Corruptions . | . . . . . . . . . . . . . . . . . . Robots Melted . | . . . . . . . . . . . . . . . . . . Combat Hostiles . | . . . . . . . . . . . . . . . . . . Parts Melted 1 | . . . . . . . . 1 . . . . . . . . . Heat Transferred 1966 | . . . . . . . . 560 814 370 . 37 . . . . 185 Parts Sabotaged . | . . . . . . . . . . . . . . . . . . Parts Stolen . | . . . . . . . . . . . . . . . . . . Parts Stripped . | . . . . . . . . . . . . . . . . . . Power Chain Reactions . | . . . . . . . . . . . . . . . . . . Alert | -11 -10 -10 -10 -9 -8 -7 -7 -7 -6 -6 -6 -6 -5 -5 -5 -5 -5 ------- Run | Yrd Mat Min Exi Min Mat Fac Was Fac Fac Was Fac DSF Fac Was Fac Gar Fac Maximum Alert Level 5 | . . . . . 1 . . 5 3 1 . 2 3 1 . 1 . Low Security (%) 62 | 100 100 100 . 100 72 100 100 4 . 79 100 28 . 36 100 97 100 Level 1 13 | . . . . . 27 . . 5 . 20 . 53 37 63 . 2 . Level 2 5 | . . . . . . . . 22 . . . 17 37 . . . . Level 3 10 | . . . . . . . . 16 100 . . . 24 . . . . Level 4 4 | . . . . . . . . 28 . . . . . . . . . Level 5 3 | . . . . . . . . 23 . . . . . . . . . High Security . | . . . . . . . . . . . . . . . . . . Max Security . | . . . . . . . . . . . . . . . . . . Sterilizations 1 | . . . . . . . . . . . . 1 . . . . . Peak Influence 1862 | . 40 65 . 5 263 108 20 1862 907 303 . 485 1002 350 93 205 112 Initial 907 | . . 11 . . . 108 8 . 907 303 . 3 254 350 93 74 107 Average 311 | . 6 16 . . 139 52 . 1067 818 97 . 265 519 227 93 80 75 Influence Increases 5477 | . 100 125 . 5 535 75 40 2491 202 . 5 585 928 4 14 299 69 Destroy 0b10 Robot/C 2240 | . 80 100 . . 420 60 . 920 20 . . 220 380 . . 40 . Destroy 0b10 Robot/NC 215 | . 10 5 . 5 5 5 . 130 25 . . . 25 . . . 5 Destroy Leader 474 | . 10 20 . . 90 10 . 212 16 . . 30 64 . . 20 2 Allied During Kill 1229 | . . . . . . . . 633 . . . 250 334 . . 12 . Successful Hack 24 | . . . . . 5 . . . . . 5 . . . 14 . . Disable Machine 195 | . . . . . . . . 90 . . . 30 75 . . . . Anti-Garrison Action 300 | . . . . . . . . 300 . . . . . . . . . Destroy Structure 290 | . . . . . . . 40 146 6 . . 40 50 4 . 2 2 Partial Spotted 75 | . . . . . . . . . 45 . . . . . . 15 15 Lose Combat Pursuer 435 | . . . . . 15 . . 60 90 . . 15 . . . 210 45 Influence Decreases 5421 | . 70 155 . 5 296 289 65 638 1188 867 . 105 411 872 41 201 218 Entered New Map 2734 | . . 19 . . . 131 17 . 946 564 . 2 231 652 41 33 98 Time Decay 1972 | . 70 126 . 5 266 158 34 418 222 283 . . 100 180 . . 110 Lost Part 270 | . . 10 . . 30 . . 50 20 . . 20 10 20 . 100 10 Lost Ally 445 | . . . . . . . 14 170 . 20 . 83 70 20 . 68 . Squads Dispatched 30 | . 1 . . . 3 . . 14 4 . . 3 4 . . . 1 Investigation 4 | . . . . . 2 . . 1 . . . . 1 . . . . Extermination 3 | . . . . . . . . 2 1 . . . . . . . . Reinforcement 12 | . 1 . . . 1 . . 3 1 . . 3 2 . . . 1 Assault 9 | . . . . . . . . 7 2 . . . . . . . . Garrison 2 | . . . . . . . . 1 . . . . 1 . . . . Intercept . | . . . . . . . . . . . . . . . . . . Searches Triggered . | . . . . . . . . . . . . . . . . . . Construction Impeded 2 | . . . . . . . . 2 . . . . . . . . . Haulers Reinforced 3 | . . . . . . . . . 1 . . . 1 . . . 1 Active Scanning Responses . | . . . . . . . . . . . . . . . . . . Cargo Convoy Interrupts . | . . . . . . . . . . . . . . . . . . Stealth | -11 -10 -10 -10 -9 -8 -7 -7 -7 -6 -6 -6 -6 -5 -5 -5 -5 -5 --------- Run | Yrd Mat Min Exi Min Mat Fac Was Fac Fac Was Fac DSF Fac Was Fac Gar Fac Distress Signals 7 | . 2 . . . 2 . . 2 . . . . . . . . 1 Communications Jammed . | . . . . . . . . . . . . . . . . . . Distress Signals . | . . . . . . . . . . . . . . . . . . Times Spotted 202 | . 9 5 . . 26 3 7 65 18 1 . 12 17 6 . 22 11 Peak Tracking Total 10 | . 4 3 . . 4 3 6 8 8 1 . 6 5 3 . 10 7 Tactical Retreats 12 | . . . . . 1 . 1 2 3 . . 1 . . . 2 2 Traps | -11 -10 -10 -10 -9 -8 -7 -7 -7 -6 -6 -6 -6 -5 -5 -5 -5 -5 ------- Run | Yrd Mat Min Exi Min Mat Fac Was Fac Fac Was Fac DSF Fac Was Fac Gar Fac Traps Triggered 11 | . . . . . 1 1 . 1 3 . . . 1 . . 3 1 Indirectly . | . . . . . . . . . . . . . . . . . . Trap Hack Attempts . | . . . . . . . . . . . . . . . . . . Triggered . | . . . . . . . . . . . . . . . . . . Disarmed . | . . . . . . . . . . . . . . . . . . Reprogrammed . | . . . . . . . . . . . . . . . . . . Reused . | . . . . . . . . . . . . . . . . . . Traps Reconfigurated 15 | . . . . . 7 1 . 7 . . . . . . . . . Traps Extracted . | . . . . . . . . . . . . . . . . . . Installed . | . . . . . . . . . . . . . . . . . . Triggered . | . . . . . . . . . . . . . . . . . . Machines | -11 -10 -10 -10 -9 -8 -7 -7 -7 -6 -6 -6 -6 -5 -5 -5 -5 -5 ---------- Run | Yrd Mat Min Exi Min Mat Fac Was Fac Fac Was Fac DSF Fac Was Fac Gar Fac Machines Disabled 15 | . . . . . . . . 8 . . . 2 5 . . . . Max in Single Turn 3 | . . . . . . . . 1 . . . . 3 . . . . Garrison Access 2 | . . . . . . . . 2 . . . . . . . . . Machines Repaired . | . . . . . . . . . . . . . . . . . . Machines Dismantled . | . . . . . . . . . . . . . . . . . . Machines Sabotaged . | . . . . . . . . . . . . . . . . . . Overloaded Fab Kills . | . . . . . . . . . . . . . . . . . . Hacking | -11 -10 -10 -10 -9 -8 -7 -7 -7 -6 -6 -6 -6 -5 -5 -5 -5 -5 --------- Run | Yrd Mat Min Exi Min Mat Fac Was Fac Fac Was Fac DSF Fac Was Fac Gar Fac Machines Accessed 17 | . . . 3 . 1 . . 5 3 . 1 . 1 . 1 1 1 Terminals 5 | . . . . . . . . 2 . . 1 . 1 . . 1 . Fabricators 3 | . . . . . . . . 2 . . . . . . . . 1 Repair Stations 1 | . . . . . 1 . . . . . . . . . . . . Recycling Units . | . . . . . . . . . . . . . . . . . . Scanalyzers 3 | . . . . . . . . . 3 . . . . . . . . Garrison Access 2 | . . . . . . . . 1 . . . . . . 1 . . Total Hacks 65 | . . . 33 . 3 . . 10 12 . 1 . 3 . 1 1 1 Successful 47 | . . . 33 . 3 . . 3 6 . 1 . . . 1 . . Failed 18 | . . . . . . . . 7 6 . . . 3 . . 1 1 Catastrophic 4 | . . . . . . . . 2 . . . . . . . 1 1 Database Lockouts . | . . . . . . . . . . . . . . . . . . Manual 4 | . . . 1 . . . . 3 . . . . . . . . . Terminals 8 | . . . . . . . . 3 . . 1 . 3 . . 1 . Fabricators 5 | . . . . . . . . 4 . . . . . . . . 1 Repair Stations 3 | . . . . . 3 . . . . . . . . . . . . Recycling Units . | . . . . . . . . . . . . . . . . . . Scanalyzers 12 | . . . . . . . . . 12 . . . . . . . . Garrison Access 4 | . . . . . . . . 3 . . . . . . 1 . . Terminal Hacks 34 | . . . 33 . . . . . . . 1 . . . . . . Record 32 | . . . 32 . . . . . . . . . . . . . . Open DSF 1 | . . . . . . . . . . . 1 . . . . . . Proto ID Catalog 1 | . . . 1 . . . . . . . . . . . . . . Fabricator Hacks 3 | . . . . . . . . 3 . . . . . . . . . Network Status 1 | . . . . . . . . 1 . . . . . . . . . Build 2 | . . . . . . . . 2 . . . . . . . . . Repair Station Hacks 3 | . . . . . 3 . . . . . . . . . . . . Scan Component 2 | . . . . . 2 . . . . . . . . . . . . Repair 1 | . . . . . 1 . . . . . . . . . . . . Recycling Unit Hacks . | . . . . . . . . . . . . . . . . . . Scanalyzer 6 | . . . . . . . . . 6 . . . . . . . . Insert Component 4 | . . . . . . . . . 4 . . . . . . . . Analyze 2 | . . . . . . . . . 2 . . . . . . . . Garrison Access Hacks 1 | . . . . . . . . . . . . . . . 1 . . Unlock Access 1 | . . . . . . . . . . . . . . . 1 . . Unauthorized Hacks . | . . . . . . . . . . . . . . . . . . Terminals . | . . . . . . . . . . . . . . . . . . Fabricators . | . . . . . . . . . . . . . . . . . . Repair Stations . | . . . . . . . . . . . . . . . . . . Recycling Units . | . . . . . . . . . . . . . . . . . . Scanalyzers . | . . . . . . . . . . . . . . . . . . Garrison Access . | . . . . . . . . . . . . . . . . . . Data Cores Recovered . | . . . . . . . . . . . . . . . . . . Used . | . . . . . . . . . . . . . . . . . . Hacking Detections 10 | . . . . . 1 . . 4 1 . 1 . 1 . . 1 1 Full Trace Events 3 | . . . . . 1 . . 1 . . . . 1 . . . . Feedback Events . | . . . . . . . . . . . . . . . . . . Feedback Blocked . | . . . . . . . . . . . . . . . . . . Robot Schematics Acquired . | . . . . . . . . . . . . . . . . . . Robots Built . | . . . . . . . . . . . . . . . . . . Authchips . | . . . . . . . . . . . . . . . . . . Time . | . . . . . . . . . . . . . . . . . . Total Robot Build Rating . | . . . . . . . . . . . . . . . . . . Part Schematics Acquired 1 | . . . . . . . . . 1 . . . . . . . . Parts Built 4 | . . . . . . . . 4 . . . . . . . . . Authchips . | . . . . . . . . . . . . . . . . . . Time 212 | . . . . . . . . 212 . . . . . . . . . Total Part Build Rating 24 | . . . . . . . . 24 . . . . . . . . . Parts Repaired 1 | . . . . . 1 . . . . . . . . . . . . Time 32 | . . . . . 32 . . . . . . . . . . . . Parts Recycled . | . . . . . . . . . . . . . . . . . . Recycled Matter . | . . . . . . . . . . . . . . . . . . Retrieved Matter . | . . . . . . . . . . . . . . . . . . Retrieved Components . | . . . . . . . . . . . . . . . . . . Parts Scanalyzed 2 | . . . . . . . . . 2 . . . . . . . . Part Schematics Acquired 1 | . . . . . . . . . 1 . . . . . . . . Parts Damaged 1 | . . . . . . . . . 1 . . . . . . . . Bothacking | -11 -10 -10 -10 -9 -8 -7 -7 -7 -6 -6 -6 -6 -5 -5 -5 -5 -5 ------------ Run | Yrd Mat Min Exi Min Mat Fac Was Fac Fac Was Fac DSF Fac Was Fac Gar Fac Used RIF Installer . | . . . . . . . . . . . . . . . . . . Robots Hacked . | . . . . . . . . . . . . . . . . . . Non-combat . | . . . . . . . . . . . . . . . . . . Combat . | . . . . . . . . . . . . . . . . . . Robot Hacks Applied . | . . . . . . . . . . . . . . . . . . Relay Couplers Released 3 | . . . . . . . . 3 . . . . . . . . . Machine Destruction 3 | . . . . . . . . 3 . . . . . . . . . Fabnet Peak Effective % . | . . . . . . . . . . . . . . . . . . Robots Rewired . | . . . . . . . . . . . . . . . . . . Allies Hacked 3 | . . . . . . . . 3 . . . . . . . . . Hacks Repelled 1 | . . . . . . . . 1 . . . . . . . . . Allies | -11 -10 -10 -10 -9 -8 -7 -7 -7 -6 -6 -6 -6 -5 -5 -5 -5 -5 -------- Run | Yrd Mat Min Exi Min Mat Fac Was Fac Fac Was Fac DSF Fac Was Fac Gar Fac Total Allies 40 | . . 1 . . . . 19 . . 20 . . . . . . . Largest Group 20 | . . 1 1 . . . 19 12 . 20 19 19 11 7 5 5 . Highest-Rated Group 725 | . . 31 31 . . . 465 337 . 725 693 693 408 259 169 169 . Highest-Rated Ally 50 | . . 31 31 . . . 35 31 . 50 50 50 46 46 46 46 . Initial Warlord ECA Mod 45 | . . . . . . . . . . . . . 9 9 9 9 9 Total Orders 5 | . . . . . 1 1 . . . . . 2 1 . . . . EXPLORE 4 | . . . . . 1 1 . . . . . 1 1 . . . . RETURN 1 | . . . . . . . . . . . . 1 . . . . . Ally Attacks 628 | . . . . . . . 137 241 . 15 . 71 89 65 . 10 . Total Damage 15159 | . . . . . . . 4981 4270 . 306 . 1934 1551 1882 . 235 . Kills 68 | . . . . . . . 11 30 . 1 . 9 12 4 . 1 . Allies Corrupted 3 | . . . . . . . . 1 . . . . . 2 . . . Allies Melted . | . . . . . . . . . . . . . . . . . . Intel | -11 -10 -10 -10 -9 -8 -7 -7 -7 -6 -6 -6 -6 -5 -5 -5 -5 -5 ------- Run | Yrd Mat Min Exi Min Mat Fac Was Fac Fac Was Fac DSF Fac Was Fac Gar Fac Active Infowar (turns) 3151 | . . . . . . . . 522 460 882 3 181 209 378 13 269 234 Optics 934 | . . . . . . . . . . . . 174 209 378 13 160 . T.N.C. 3151 | . . . . . . . . 522 460 882 3 181 209 378 13 269 234 Robot Analysis Total . | . . . . . . . . . . . . . . . . . . Derelict Logs Recovered . | . . . . . . . . . . . . . . . . . . Drone Launches 4 | . . . . . 1 1 . . . . . 1 1 . . . . Drone Recoveries 3 | . . . . . 1 1 . . . . . 1 . . . . . Exploration | -11 -10 -10 -10 -9 -8 -7 -7 -7 -6 -6 -6 -6 -5 -5 -5 -5 -5 ------------- Run | Yrd Mat Min Exi Min Mat Fac Was Fac Fac Was Fac DSF Fac Was Fac Gar Fac Turns Passed 6975 | 31 319 463 624 125 622 321 793 1048 460 882 3 181 209 378 13 269 234 Spaces Moved 4844 | 33 134 209 253 62 203 132 728 577 492 544 3 170 192 280 9 378 445 Core 1102 | 33 134 209 253 62 63 . 249 88 . 10 . . . . . . 1 Treads 119 | . . . . . 119 . . . . . . . . . . . . Legs 384 | . . . . . 21 132 44 86 101 . . . . . . . . Wheels 777 | . . . . . . . 374 403 . . . . . . . . . Hover 178 | . . . . . . . 61 . 117 . . . . . . . . Flight 2284 | . . . . . . . . . 274 534 3 170 192 280 9 378 444 Fastest Speed 28 | 50 100 150 200 200 125 125 50 50 30 30 102 30 34 28 102 28 34 Average Speed 105 | 89 195 199 200 200 175 125 87 135 63 125 102 69 34 94 102 51 35 Slowest Speed 400 | 100 200 200 200 200 400 125 150 250 170 350 102 106 34 102 102 102 106 Overloaded Moves 280 | . . . . . . . . . 38 9 . 169 . 64 . . . Propulsion Burnouts . | . . . . . . . . . . . . . . . . . . Robots Hopped 16 | . . . . . . . . . 2 . . . . . . 5 9 Potential Cave-ins . | . . . . . . . . . . . . . . . . . . Cave-ins Triggered . | . . . . . . . . . . . . . . . . . . Exploration Rate (%) 41 | 3 23 63 62 20 25 13 97 17 13 95 . 98 12 98 1 44 14 Regions Visited 17 Branch Regions 3 Pre-discovered Areas 1 | . . . 1 . . . . . . . . . . . . . . Known Exits Taken 2 | . . . . . . . . . . . 1 . . . 1 . . Unknown Exits Taken 7 | 1 1 1 1 1 1 . . 1 . . . . . . . . . Scrap Searched . | . . . . . . . . . . . . . . . . . . Spaces Dug 15 | . . . . . . . 2 7 6 . . . . . . . . Terrain Destroyed 165 | . . . . . . . 10 131 6 . . 2 13 2 . 1 . Melee . | . . . . . . . . . . . . . . . . . . Projectile 19 | . . . . . . . 4 3 6 . . 2 1 2 . 1 . AOE 146 | . . . . . . . 6 128 . . . . 12 . . . . Terrain Rammed . | . . . . . . . . . . . . . . . . . . Walls Destroyed . | . . . . . . . . . . . . . . . . . . Machines Disabled . | . . . . . . . . . . . . . . . . . . Actions | -11 -10 -10 -10 -9 -8 -7 -7 -7 -6 -6 -6 -6 -5 -5 -5 -5 -5 --------- Run | Yrd Mat Min Exi Min Mat Fac Was Fac Fac Was Fac DSF Fac Was Fac Gar Fac Total 6141 | 34 158 231 372 62 371 272 856 700 599 709 2 210 282 339 12 430 502 Wait 722 | . . 9 113 . 112 130 79 20 34 113 . 19 30 19 3 11 30 Move 4801 | 32 133 208 252 61 202 132 727 576 488 543 2 169 192 279 9 367 429 Hop 12 | . . . . . . . . . 2 . . . . . . 3 7 Pick Up 64 | 1 6 . 4 . 6 2 8 3 13 6 . . 4 2 . 2 7 Fast Attach 32 | . . . . . 1 1 8 4 1 7 . 6 2 . . 1 1 Attach 59 | 1 2 1 2 . 8 . 4 . 14 5 . 1 6 5 . 2 8 Detach 16 | . . . . . . . 1 1 4 2 . . 5 2 . . 1 Swap 24 | . . 1 . . . . 3 10 5 2 . 1 1 . . . 1 Drop 56 | . . . 1 . . . 11 13 8 11 . 4 4 1 . . 3 Fire 313 | . 17 12 . 1 42 7 15 73 30 20 . 10 38 31 . 6 11 Melee 2 | . . . . . . . . . . . . . . . . 2 . Ram . | . . . . . . . . . . . . . . . . . . Kick . | . . . . . . . . . . . . . . . . . . Crush . | . . . . . . . . . . . . . . . . . . Escape Stasis 40 | . . . . . . . . . . . . . . . . 36 4 Rewire . | . . . . . . . . . . . . . . . . . . Trap . | . . . . . . . . . . . . . . . . . . Miscellaneous . | . . . . . . . . . . . . . . . . . . Route ------- -11/Scrapyard -10/Materials -10/Mines (discovered 2 exits: [*Mat] / *Exi) -10/Exiles -9/Mines -8/Materials -7/Factory -7/Waste -7/Factory -6/Factory -6/Waste -6/Factory -6/DSF -5/Factory -5/Waste -5/Factory -5/Garrison (discovered 2 exits: *Fac x2) -5/Factory History --------- Turn | Location | Event 7 | -11/Scrapyard | Discovered new exit (range 15) 32 | -11/Scrapyard | Entered Materials 310 | -10/Materials | Build established: Mutant 336 | -10/Materials | Discovered new exit (range 7) 351 | -10/Materials | Entered Mines 388 | -10/Mines | Met a Derelict bent on vengeance 417 | -10/Mines | Discovered new exit (range 12) 545 | -10/Mines | Escorted by a lone wolf Derelict 797 | -10/Mines | Deemed a non-threat by the Exiles lab entrance 797 | -10/Mines | Discovered new exit (range 5) 814 | -10/Mines | Entered Exiles 814 | -10/Exiles | Accompanied by 1 ally 900 | -10/Exiles | Met 8R-AWN 954 | -10/Exiles | Met EX-HEX 1016 | -10/Exiles | Met EX-BIN 1040 | -10/Exiles | Aligned with FarCom system 1042 | -10/Exiles | Given EX-Vault access code 1108 | -10/Exiles | Opened EX-Vault 1122 | -10/Exiles | Found Trap Reconfigurator 1125 | -10/Exiles | Found Modified TNC 1142 | -10/Exiles | Found Supersonic Drone Bay 1185 | -10/Exiles | Warned to stay clear of 0b10 Research branches 1328 | -10/Exiles | Met EX-DEC 1360 | -10/Exiles | Learned location of Zion (-6) 1422 | -10/Exiles | Discovered new exit (range 10) 1438 | -10/Exiles | Stole three prototypes: Trap Reconfigurator, Modified TNC, Supersonic Drone Bay 1438 | -10/Exiles | Entered Mines 1553 | -9/Mines | Discovered new exit (range 6) 1563 | -9/Mines | Entered Materials 1563 | -8/Materials | Evolved 4 slots: Utility x2, Weapon x2 1821 | -8/Materials | Repaired Shotgun 1995 | -8/Materials | Build established: Skirmisher 2074 | -8/Materials | Discovered new exit (range 17) 2185 | -8/Materials | Entered Factory 2185 | -7/Factory | Evolved 2 slots: Power x1, Utility x1 2187 | -7/Factory | FarCom data flow suspended 2487 | -7/Factory | Build established: Gunner 2506 | -7/Factory | Sucked down chute 2506 | -7/Factory | Entered Waste 2527 | -7/Waste | Spotted C-40 Crusher 2556 | -7/Waste | Spotted C-40 Crusher 2559 | -7/Waste | Crushed by Compactor (1 part destroyed, 2 dropped) 2563 | -7/Waste | Crushed by Compactor (1 part destroyed, 1 dropped) 2574 | -7/Waste | Crushed by Compactor (1 part destroyed, 1 dropped) 2577 | -7/Waste | Crushed by Compactor (1 part destroyed, 1 dropped) 2591 | -7/Waste | Spotted C-40 Crusher 2603 | -7/Waste | Spotted C-40 Crusher 2608 | -7/Waste | Lost 5 parts (1p1n3w) 2625 | -7/Waste | Spotted C-40 Crusher 2644 | -7/Waste | Spotted C-40 Crusher 2681 | -7/Waste | Discovered new exit (range 13) 2687 | -7/Waste | Warlord forces began an assault 2700 | -7/Waste | Allies destroyed C-40 Crusher 2700 | -7/Waste | Allies destroyed C-40 Crusher 2709 | -7/Waste | Allies destroyed C-40 Crusher 2713 | -7/Waste | Allies destroyed C-40 Crusher 2716 | -7/Waste | Allies destroyed C-40 Crusher 2739 | -7/Waste | Allies destroyed C-40 Crusher 2758 | -7/Waste | Lost 7 allies 2845 | -7/Waste | Build established: Mutant 3299 | -7/Waste | Entered Factory 3299 | -7/Factory | Accompanied by 12 allies 3334 | -7/Factory | Garrison activated, responded to threat 3445 | -7/Factory | Build established: Derelict-Tank 3574 | -7/Factory | Fabricated HERF Cannon? 3699 | -7/Factory | First assault squad dispatched 3786 | -7/Factory | Destroyed 7 combat bots 3802 | -7/Factory | Fabricated Focal Shield (x2) 3834 | -7/Factory | Lost 3 allies 4060 | -7/Factory | P-60 Hacker assimilated allied TG-I1F(g) 4162 | -7/Factory | Build established: Tank 4178 | -7/Factory | Core integrity fell below 50% 4290 | -7/Factory | Lost 3 allies 4339 | -7/Factory | Discovered new exit (range 15) 4344 | -7/Factory | Lost 3 parts (1u2w) 4347 | -7/Factory | Entered another Factory area 4347 | -6/Factory | Evolved 2 slots: Utility x2 4598 | -6/Factory | Build established: Mutant 4697 | -6/Factory | First assault squad dispatched 4807 | -6/Factory | Manually triggered Chute Trap 4807 | -6/Factory | Sucked down chute 4807 | -6/Factory | Entered Waste 4808 | -6/Waste | Joined by Warlord forces that had cleared the area 4847 | -6/Waste | A Compactor rumbled back to life 4852 | -6/Waste | Allies destroyed C-40 Crusher 4983 | -6/Waste | Discovered new exit (range 12) 5082 | -6/Waste | Found Prototype Device 5082 | -6/Waste | Identified Adv. EM Shield 5689 | -6/Waste | Entered Factory 5689 | -6/Factory | Accompanied by 19 allies 5692 | -6/Factory | Identified exit to DSF 5692 | -6/Factory | Entered DSF 5692 | -6/DSF | Accompanied by 19 allies 5706 | -6/DSF | Discovered new exit (range 20) 5725 | -6/DSF | Additional patrols routed to DSF 5777 | -6/DSF | Lost 8 allies 5778 | -6/DSF | Lost 4 parts (1u3w) 5812 | -6/DSF | Sterilization system engaged 5832 | -6/DSF | Ambient heat levels rising (+10) 5847 | -6/DSF | Ambient heat levels rising (+10) 5862 | -6/DSF | Ambient heat levels rising (+10) 5873 | -6/DSF | Entered Factory 5873 | -5/Factory | Accompanied by 11 allies 5873 | -5/Factory | Evolved 2 slots: Propulsion x2 5993 | -5/Factory | Lost 3 allies 6015 | -5/Factory | Garrison activated, responded to threat 6082 | -5/Factory | Sucked down chute 6082 | -5/Factory | Entered Waste 6089 | -5/Waste | Spotted C-40 Crusher 6097 | -5/Waste | EMP discharged 6097 | -5/Waste | Spotted C-40 Crusher 6098 | -5/Waste | Spotted C-40 Crusher 6099 | -5/Waste | Destroyed C-40 Crusher 6102 | -5/Waste | Destroyed C-40 Crusher 6122 | -5/Waste | Crushed by Compactor (1 part destroyed) 6140 | -5/Waste | Allies destroyed C-40 Crusher 6143 | -5/Waste | Spotted C-40 Crusher 6155 | -5/Waste | Allies destroyed C-40 Crusher 6177 | -5/Waste | 8 allies followed down the chute 6182 | -5/Waste | Spotted C-40 Crusher 6197 | -5/Waste | EMP discharged 6198 | -5/Waste | Allies destroyed C-40 Crusher 6215 | -5/Waste | Spotted C-40 Crusher 6242 | -5/Waste | Allies destroyed C-40 Crusher 6297 | -5/Waste | EMP discharged 6298 | -5/Waste | Discovered new exit (range 11) 6345 | -5/Waste | System corruption reached 10% 6397 | -5/Waste | EMP discharged 6460 | -5/Waste | Entered Factory 6460 | -5/Factory | Accompanied by 5 allies 6473 | -5/Factory | Identified exit to Garrison 6473 | -5/Factory | Entered Garrison 6473 | -5/Garrison | Accompanied by 5 allies 6497 | -5/Garrison | Triggered checkpoint 6600 | -5/Garrison | Spotted B-75 Beast 6617 | -5/Garrison | Triggered checkpoint 6624 | -5/Garrison | Allies destroyed B-75 Beast 6649 | -5/Garrison | Discovered new exit (range 10) 6653 | -5/Garrison | Attempted to access garrison exit controls, blocked by remote lockdown 6663 | -5/Garrison | Triggered checkpoint 6666 | -5/Garrison | Lost 8 parts (2p1n2u3w) 6667 | -5/Garrison | Triggered checkpoint 6673 | -5/Garrison | Lost 5 allies 6694 | -5/Garrison | Core integrity fell below 50% 6714 | -5/Garrison | Triggered checkpoint 6731 | -5/Garrison | Triggered checkpoint 6738 | -5/Garrison | Discovered new exit (range 12) 6742 | -5/Garrison | Entered Factory 6949 | -5/Factory | Core integrity fell below 20% 6976 | -5/Factory | Destroyed by L-41 Fighter with Axe Last Messages --------------- U-05 Engineer destroyed. K-01 Serf collects debris. U-05 Engineer lays Concrete. Penetrated by Slug. VTOL Module destroyed. U-05 Engineer lays Concrete. K-01 Serf collects debris. U-05 Engineer lays Concrete. R-10 Processor collects Unknown Special Weapon. /Z3IVE Y47G>SOADX5BV#=LTMORSG8 Triggered Stasis Trap. A bubble of rippling energy engulfs the area. Field strength at 95. Field strength at 90. Field strength at 85. Field strength at 75. Field strength at 70. Slug penetrates L-41 Fighter. Slug penetrates Wall. System corrupted: Component data lost. Map ----- +----------------------------------------------------+ | ?????????????????????????????????????????????????? | | ?????????????????????????????????????????????????? | | ?????????????????????????????????????????????????? | | ?????????????????????????????????????????????????? | | ??????????????????????????????????#??????????????? | | ?????????????????????????????????? ??????????????? | | ?????????????????????????????????? ??????????????? | | ?????????????????????????????????" "?????????????? | | ?????????????????????????????????" "?????????????? | | ???????????????????????????? "?" " " "? #????????? | | ???????????????????????????# " " " " " #????????? | | ???????????????????????????# " " " " " #????????? | | ???????????????????????????# " " " " " #????????? | | ???????????????????????????# " " " " " #????????? | | ???????????????????????????? " " " " " #????????? | | ?????????????????????????????? " " " " ??????????? | | ???????????????????????????????? ????????????? | | ?????????????????????????#########+#############+# | | ?????????????????????????# | | ?????????????????????????# | | ?????????????????????????# | | ?????????????????????????+ | | ?????????????????????????# g | | ?????????????????????????# ###"#######+####### | | ??????????????????########l # # | | ??????????????????# @ # """"""""" # | | ??????????????????# # # | | ??????????????????# # """"""""" # | | ??????????????????# # # | | ??????????????????# # """"""""" # | | ??????????????????# ######## # | | ??????????????????# ???????#################+# | | ??????????????????# ???????????????????????# # | | ??????????????????# ???????????????????????# | | ??????????????????# ?????????????????######## | | ??????????????????# ?????????????+ | | ??????????????????# ??????????????????####### | | ??????????????????# ?????????????????????????# | | ??????????????????# ?????????????????????????# | | ????????????????????? ?????????????????????????# | | ???????????????????????????????????????????????# | | ???????????????????????????????????????????????# | | ??????????????????????????????????????????????#" | | ??????????????????????????????????????????????#" | | ??????????????????????????????????????????????#" | | ??????????????????????????????????????????????#" | | ??????????????????????????????????????????????#" | | ????????????????????????????????????????????? | | ????????????????????????????????????????????? | | ???????????????????????????????????????????? | +----------------------------------------------------+ Best States ------------- Heat Dissipation 56 Energy Generation 24 Energy Capacity 250 Matter Stores 300 Matter Capacity 300 Sight Range 22 Terrain Scan Density 10 Armor Coverage 760 Resistance: EM 50 Core Shielding 30 Weapon Shielding 90 Evasion (%) 64 Recoil Reduction 2 Particle Charging 25 Kinecelleration 30 Defensive Hacking 10 Item Schematics ----------------- Biomechanical Wings | -6/Factory | Scanalyzed Robot Schematics ------------------ None Fabricated ------------ HERF Cannon | x2 | -7/Factory | Preloaded Focal Shield | x2 | -7/Factory | Preloaded Repaired ---------- Shotgun | 6% | -8/Materials Alien Tech Used ----------------- None Achievements -------------- Wheee! Challenges ------------ None Game ------ Seed TripodChipCoupler Manual? 0 Play Time 01:28:52 Cumulative 163.2 hours Start 2025.09.27 @ 17:35:50 End 2025.09.27 @ 19:37:33 Sessions 1 Manual Loads 0 Difficulty Rogue Special Mode None Game No. 523 Rogue 522 Adventurer 1 Explorer 0 Win Type - Total 0 Types 0/0/0/0/0/0/0/0/0/0 Lore% 57 Gallery% 55 Achievement% 43 Wizard Run 0 Options --------- Layout 1 ASCII 0 Keyboard 0 Movement Mouse Keybinds 0 Fullscreen 2 Font 24/Smallcaps Map View 50x35 Zoom Use 0% Tactical HUD 0 Map Filters NONE Filters NONE Steam 1 RUN: 74051225-9360-40fe-9739-2dfed70e2c31